bitfinex-derivatives/quotes_BTCF0:USTF0_20210109
["timestamp","ask_amount","ask_price","bid_price","bid_amount"]
[1610177401131,0.77033845,39379.0,39374.0,0.00797016]
[1610177401332,4.90847897,39375.0,39373.0,0.11759]
[1610177401736,2.06722406,39374.0,39373.0,0.11759]
[1610177402132,2.06722406,39374.0,39373.0,0.12556042]
[1610177402331,1.05007139,39374.0,39373.0,0.12556042]
[1610177402533,2.06716974,39374.0,39373.0,0.12556042]
[1610177402733,2.06716974,39374.0,39373.0,0.11759]
[1610177402933,2.06716974,39374.0,39373.0,0.00797057]
[1610177403132,2.20349582,39374.0,39373.0,0.14429665]
[1610177403333,2.76153961,39374.0,39373.0,0.14429665]
[1610177403533,2.76153961,39374.0,39373.0,0.13632608]
[1610177403734,2.76153961,39374.0,39373.0,0.1442969]
[1610177405234,2.76153961,39374.0,39373.0,0.00797082]
[1610177405836,2.76153961,39374.0,39357.0,0.03204384]
[1610177406036,2.76153961,39374.0,39373.0,0.00797292]
[1610177406037,1.06639084,39374.0,39373.0,0.00797292]
[1610177406239,0.69436987,39374.0,39359.0,0.11838]
[1610177406636,1.52522331,39374.0,39360.0,0.00797276]
[1610177406837,1.52522331,39374.0,39360.0,0.00797284]
[1610177407138,0.5594,39367.0,39360.0,0.00797284]
[1610177409237,0.5594,39367.0,39366.0,0.13632608]
[1610177409837,0.5594,39367.0,39366.0,0.14429873]
[1610177413941,0.00785302,39372.0,39366.0,0.14429873]
[1610177414142,0.02340382,39372.0,39366.0,0.14429873]
[1610177414443,0.02340382,39372.0,39367.0,0.00022039]
[1610177414645,0.00785217,39375.0,39367.0,0.00797209]
[1610177414944,0.00785222,39374.0,39367.0,0.00797209]
[1610177415344,0.46205169,39374.0,39373.0,0.13632608]
[1610177415743,0.46205169,39374.0,39373.0,0.14429819]
[1610177418044,1.016487,39374.0,39373.0,0.14429819]
[1610177420246,0.46205169,39374.0,39373.0,0.14429819]
[1610177420647,1.01672808,39374.0,39373.0,0.14429819]
[1610177422249,4.52492808,39374.0,39373.0,0.14429819]
[1610177423050,4.89693454,39374.0,39373.0,0.14429819]
[1610177425456,4.89693454,39374.0,39373.0,0.00797211]
[1610177425855,5.57497469,39374.0,39360.0,0.08181104]
[1610177426054,5.57497469,39374.0,39373.0,0.00797301]
[1610177426255,5.57497469,39374.0,39361.0,0.00797314]
[1610177426456,0.00785742,39365.0,39361.0,0.00797314]
[1610177426655,0.00785742,39365.0,39360.0,0.00797316]
[1610177426855,0.00785742,39365.0,39362.0,0.00797319]
[1610177427056,0.00785742,39365.0,39361.0,0.00797305]
[1610177427255,0.4087,39362.0,39361.0,0.00797305]
[1610177427456,0.4087,39362.0,39359.0,0.11838]
[1610177427659,0.4087,39362.0,39361.0,0.00797309]
[1610177427856,0.4087,39362.0,39360.0,0.00797313]
[1610177428258,0.4087,39362.0,39361.0,0.00797304]
[1610177428458,0.4087,39362.0,39361.0,0.12799304]
[1610177428658,0.4087,39362.0,39361.0,0.12002]
[1610177429060,0.4087,39362.0,39361.0,0.12799309]
[1610177429260,0.4087,39362.0,39361.0,0.26431917]
[1610177430866,0.87104377,39362.0,39361.0,0.26431917]
[1610177431863,1.79795984,39362.0,39361.0,0.26431917]
[1610177432462,1.38925984,39362.0,39361.0,0.12002]
[1610177432663,1.38925984,39362.0,39361.0,0.12799465]
[1610177432866,2.06727747,39362.0,39361.0,3.96149465]
[1610177433265,1.01715077,39362.0,39361.0,4.09782073]
[1610177433464,0.78525077,39362.0,39361.0,4.12308295]
[1610177433665,0.77036735,39369.0,39361.0,4.12308295]
[1610177433666,0.0078551,39369.0,39361.0,5.62308295]
[1610177434066,0.00785365,39373.0,39361.0,5.62308295]
[1610177434264,0.00785365,39373.0,39362.0,0.03322214]
[1610177434465,0.2787,39378.0,39362.0,0.03322214]
[1610177435266,0.2787,39378.0,39377.0,0.13632608]
[1610177435466,0.2787,39378.0,39377.0,0.23563608]
[1610177435866,0.2787,39378.0,39377.0,0.2436047]
[1610177436467,0.0259,39378.0,39377.0,1.7436047]
[1610177436667,0.00785192,39393.0,39377.0,1.7436047]
[1610177436868,0.00785138,39394.0,39377.0,1.76884852]
[1610177437067,0.00785138,39394.0,39378.0,0.03320829]
[1610177437269,0.00785013,39400.0,39393.0,0.13632608]
[1610177437468,0.00785013,39400.0,39393.0,0.23361608]
[1610177437667,0.00784643,39404.0,39394.0,0.00796717]
[1610177438070,0.02338421,39408.0,39394.0,0.00796717]
[1610177438468,0.00784004,39410.0,39394.0,0.00796717]
[1610177438667,0.00784004,39410.0,39408.0,2.9335]
[1610177438868,0.02336628,39411.0,39408.0,3.03724]
[1610177439167,0.02336628,39411.0,39409.0,0.00796614]
[1610177439368,0.01552635,39411.0,39410.0,0.13632608]
[1610177439669,0.01552635,39411.0,39410.0,0.14429225]
[1610177439869,0.00783467,39412.0,39410.0,0.14429225]
[1610177440269,0.01551553,39412.0,39411.0,0.00796617]
[1610177440670,0.02334545,39412.0,39411.0,0.00796617]
[1610177440869,0.00782992,39412.0,39411.0,0.00796617]
[1610177441069,1.04738562,39417.0,39411.0,0.00022022]
[1610177441269,1.04738562,39417.0,39416.0,0.13632608]
[1610177441471,0.2755,39418.0,39416.0,0.73862608]
[1610177441770,0.2755,39418.0,39417.0,0.00022022]
[1610177441970,0.95082207,39418.0,39417.0,0.00022022]
[1610177442371,1.32253543,39418.0,39417.0,0.00022022]
[1610177442771,0.64721336,39418.0,39417.0,0.00022022]
[1610177443972,0.2755,39418.0,39417.0,0.00022022]
[1610177444373,0.28331248,39418.0,39417.0,0.00022022]
[1610177444872,0.2755,39418.0,39417.0,0.00022022]
[1610177450374,0.2755,39418.0,39417.0,1.50022022]
[1610177451175,0.2807,39433.0,39417.0,1.50022022]
[1610177451377,0.2807,39433.0,39432.0,0.13632608]
[1610177451575,0.2807,39433.0,39432.0,0.22821608]
[1610177451776,0.2807,39433.0,39432.0,0.22843606]
[1610177456383,0.1443,39433.0,39432.0,0.22821608]
[1610177457384,0.00772028,39475.0,39459.0,3.128]
[1610177457584,0.00771051,39481.0,39468.0,3.645]
[1610177457984,0.0077102,39485.0,39468.0,3.645]
[1610177458385,0.08474,39486.0,39468.0,3.645]
[1610177459285,0.00770104,39488.0,39468.0,3.645]
[1610177459486,0.00769138,39492.0,39487.0,0.13632608]
[1610177459885,0.5430719,39495.0,39487.0,0.13632608]
[1610177459886,0.00769127,39495.0,39488.0,3.1459]
[1610177460287,0.00769094,39497.0,39488.0,3.1459]
[1610177460686,0.02292119,39501.0,39488.0,3.1459]
[1610177461086,0.02292119,39501.0,39487.0,0.22148608]
[1610177461487,0.00769066,39501.0,39498.0,0.13632608]
[1610177461889,0.01519638,39499.0,39498.0,0.13632608]
[1610177462090,0.12004638,39499.0,39479.0,0.11898]
[1610177462488,0.12004638,39499.0,39470.0,4.1353]
[1610177462489,0.64671466,39499.0,39470.0,4.1353]
[1610177462688,0.00766786,39491.0,39470.0,4.1353]
[1610177462888,0.08520786,39491.0,39467.0,0.09258]
[1610177463088,0.00766813,39490.0,39467.0,0.09258]
[1610177463488,0.00766296,39489.0,39467.0,0.09258]
[1610177463890,0.22152926,39491.0,39467.0,0.09258]
[1610177464088,0.08520318,39491.0,39467.0,0.08454]
[1610177464288,0.07754,39491.0,39467.0,3.79684]
[1610177465589,0.07754,39491.0,39490.0,0.13632608]
[1610177466590,0.10485,39499.0,39490.0,0.13632608]
[1610177467190,0.0227892,39508.0,39490.0,0.13632608]
[1610177467393,0.00764636,39509.0,39490.0,0.13632608]
[1610177467591,0.00764636,39509.0,39508.0,0.13632608]
[1610177467793,0.30004083,39511.0,39508.0,0.13632608]
[1610177468293,0.30004083,39511.0,39486.0,3.9554]
[1610177468294,0.00764077,39510.0,39486.0,3.9554]
[1610177468494,0.30003591,39511.0,39486.0,3.9554]
[1610177469094,0.00763591,39511.0,39486.0,3.9554]
[1610177469495,0.00763584,39514.0,39508.0,0.13632608]
[1610177469694,0.00763107,39517.0,39508.0,0.13632608]
[1610177470096,0.02274385,39514.0,39508.0,0.13632608]
[1610177470495,0.00762653,39516.0,39508.0,0.13632608]
[1610177470896,0.00762631,39517.0,39508.0,0.13632608]
[1610177471397,0.00762677,39515.0,39508.0,0.13632608]
[1610177471595,0.13632608,39509.0,39508.0,0.13632608]
[1610177472294,0.00762677,39515.0,39508.0,0.13632608]
[1610177472796,0.02270766,39517.0,39508.0,0.0590245]
[1610177473097,0.00761897,39518.0,39508.0,0.05747848]
[1610177473295,0.08665897,39519.0,39508.0,0.05747848]
[1610177473496,0.08665897,39519.0,39513.0,0.13632608]
[1610177474598,0.07904,39519.0,39513.0,0.13632608]
[1610177475198,0.07904,39519.0,39499.0,3.2223]
[1610177475398,0.1556,39522.0,39499.0,3.2223]
[1610177475598,0.11714,39521.0,39507.0,0.13632608]
[1610177476199,0.12474943,39521.0,39507.0,0.13632608]
[1610177476601,0.11714,39521.0,39507.0,0.13632608]
[1610177476800,4.0519,39516.0,39497.0,0.08437]
[1610177477001,4.0519,39516.0,39485.0,0.09494]
[1610177477002,0.00760774,39520.0,39485.0,0.09494]
[1610177477201,3.0602,39496.0,39476.0,0.10404]
[1610177477403,3.0602,39496.0,39485.0,0.09806]
[1610177478008,0.13632608,39486.0,39485.0,0.09806]
[1610177478402,0.64862608,39486.0,39485.0,0.09806]
[1610177481205,0.13632608,39486.0,39485.0,0.09806]
[1610177482208,0.13632608,39486.0,39483.0,0.13632608]
[1610177482608,2.9142,39492.0,39483.0,0.13632608]
[1610177482809,0.08493,39500.0,39483.0,0.13632608]
[1610177483209,0.00030929,39499.0,39483.0,0.13632608]
[1610177483408,0.08493,39500.0,39483.0,0.13632608]
[1610177484010,0.08493,39500.0,39499.0,0.13632608]
[1610177484610,0.08523927,39500.0,39499.0,0.13632608]
[1610177484811,0.08523927,39500.0,39499.0,0.13478005]
[1610177485310,0.08523927,39500.0,39475.0,0.11839]
[1610177485811,0.00030929,39499.0,39475.0,0.11839]
[1610177486014,0.00030929,39499.0,39497.0,0.13632608]
[1610177486412,0.5074,39498.0,39475.0,0.11839]
[1610177486813,0.00030929,39497.0,39476.0,0.00021644]
[1610177488016,0.00030929,39497.0,39492.0,0.13632608]
[1610177490020,0.00030929,39497.0,39496.0,0.13632608]
[1610177492125,0.13663537,39497.0,39492.0,0.13632608]
[1610177492722,0.00030929,39496.0,39492.0,0.13632608]
[1610177493123,0.00030927,39497.0,39492.0,0.13632608]
[1610177493324,0.0757,39496.0,39492.0,0.13632608]
[1610177493523,0.0764,39495.0,39492.0,0.13632608]
[1610177493724,0.5074,39498.0,39493.0,0.00021638]
[1610177494125,0.5074,39498.0,39497.0,0.13632608]
[1610177494526,0.5074,39498.0,39497.0,0.13654246]
[1610177495124,0.08493,39500.0,39497.0,0.13654246]
[1610177495325,0.00769909,39501.0,39499.0,2.98245428]
[1610177495725,0.00770402,39506.0,39499.0,2.98245428]
[1610177495925,0.00770402,39506.0,39500.0,0.00021633]
[1610177496127,0.0077026,39519.0,39506.0,4.2167]
[1610177496326,0.0767,39518.0,39506.0,4.31772]
[1610177496525,0.00770577,39525.0,39517.0,0.13632608]
[1610177496726,0.00770577,39525.0,39517.0,0.24719608]
[1610177496924,0.00770577,39525.0,39518.0,0.00021624]
[1610177497125,0.02296275,39534.0,39518.0,0.00021624]
[1610177497325,0.00770527,39532.0,39518.0,0.00021624]
[1610177497725,0.00770607,39534.0,39518.0,0.00021624]
[1610177498528,0.14403215,39534.0,39533.0,0.13632608]
[1610177498926,0.13632608,39534.0,39533.0,0.13632608]
[1610177500229,0.13632608,39534.0,39525.0,0.08664]
[1610177500430,0.00770638,39535.0,39527.0,0.13632608]
[1610177500630,0.00770787,39534.0,39527.0,0.13632608]
[1610177500829,0.00770787,39534.0,39528.0,0.00021623]
[1610177501029,0.00770806,39533.0,39527.0,0.13632608]
[1610177501431,0.02298231,39532.0,39517.0,0.11087]
[1610177501831,0.02298231,39532.0,39430.0,2.19012746]
[1610177502032,0.00771132,39530.0,39488.0,3.2842]
[1610177502230,0.00771132,39530.0,39507.0,0.00021625]
[1610177502432,0.00771151,39529.0,39522.0,0.13632608]
[1610177502635,0.00771603,39527.0,39522.0,0.13632608]
[1610177503040,0.00771657,39528.0,39506.0,0.11122]
[1610177503432,0.00771657,39528.0,39507.0,0.00021623]
[1610177503632,0.00772087,39524.0,39507.0,0.00021623]
[1610177503833,0.00772112,39523.0,39507.0,0.00021623]
[1610177504232,2.973,39520.0,39506.0,0.11122]
[1610177504431,0.13632608,39507.0,39506.0,0.13632608]
[1610177505431,0.08407956,39513.0,39506.0,0.13632608]
[1610177505632,0.00773517,39511.0,39506.0,0.13632608]
[1610177506033,0.4938,39512.0,39488.0,0.07343]
[1610177506232,0.08408427,39513.0,39488.0,0.07343]
[1610177506433,3.0497,39510.0,39489.0,0.00021629]
[1610177506634,0.00774126,39512.0,39489.0,0.00021629]
[1610177506835,3.1318,39497.0,39489.0,0.00021629]
[1610177507033,3.26812608,39497.0,39489.0,0.00021629]
[1610177508435,0.13632608,39497.0,39489.0,0.00021629]
[1610177508834,0.13632608,39497.0,39461.0,0.03119917]
[1610177508835,3.4684,39490.0,39461.0,0.03119917]
[1610177509034,3.60472608,39490.0,39465.0,0.13632608]
[1610177509435,0.13632608,39490.0,39465.0,0.13632608]
[1610177509736,3.8037,39467.0,39466.0,0.00021639]
[1610177510136,3.8037,39467.0,39465.0,0.00021647]
[1610177510336,3.8037,39467.0,39466.0,0.00021647]
[1610177510935,3.8037,39467.0,39456.0,0.0881]
[1610177510936,3.94002608,39467.0,39460.0,0.13632608]
[1610177511136,3.94002608,39467.0,39466.0,0.00021647]
[1610177511336,3.94002608,39467.0,39461.0,0.00021647]
[1610177512944,3.94002608,39467.0,39466.0,0.13632608]
[1610177513537,3.8037,39467.0,39466.0,0.13654255]
[1610177514143,3.8037,39467.0,39466.0,0.13654253]
[1610177514545,0.09694141,39476.0,39466.0,0.13654253]
[1610177514952,0.08915,39476.0,39475.0,0.13632608]
[1610177515146,0.00779241,39479.0,39475.0,0.13632608]
[1610177515346,0.00779241,39479.0,39475.0,0.13654247]
[1610177515547,0.2902,39481.0,39476.0,0.00021639]
[1610177516158,0.00779308,39489.0,39476.0,0.00021639]
[1610177516750,0.02323029,39495.0,39476.0,0.00794431]
[1610177516949,0.02323029,39495.0,39494.0,0.13632608]
[1610177517147,0.02322896,39499.0,39494.0,0.13632608]
[1610177517545,0.00779393,39499.0,39494.0,0.13654237]
[1610177517746,0.02323341,39500.0,39495.0,0.00021629]
[1610177518148,0.47417354,39496.0,39495.0,0.00021629]
[1610177518547,0.45873462,39496.0,39495.0,0.00021629]
[1610177518945,0.96598517,39496.0,39495.0,0.00021629]
[1610177519146,1.94067778,39496.0,39495.0,0.00021629]
[1610177519346,1.94067778,39496.0,39488.0,0.00021634]
[1610177519546,2.61367441,39496.0,39495.0,0.00021634]
[1610177519847,2.61367441,39496.0,39489.0,0.00021634]
[1610177520047,2.61367441,39496.0,39495.0,0.00021634]
[1610177520449,2.61367441,39496.0,39490.0,0.00021634]
[1610177520650,2.61367441,39496.0,39472.0,0.11775]
[1610177520651,1.00963632,39491.0,39472.0,0.11775]
[1610177520848,1.00963632,39491.0,39459.0,3.6455]
[1610177521050,0.67303555,39493.0,39490.0,0.13632608]
[1610177521448,0.55058682,39494.0,39492.0,2.9294]
[1610177521652,0.55058682,39494.0,39492.0,3.02196]
[1610177521850,0.00779623,39499.0,39492.0,3.02196]
[1610177522050,0.51577513,39502.0,39493.0,0.00021624]
[1610177522251,0.01543843,39509.0,39493.0,0.00794131]
[1610177522651,0.67255547,39522.0,39493.0,0.03117699]
[1610177523051,0.67253969,39525.0,39511.0,0.13632608]
[1610177523451,0.67253969,39525.0,39511.0,0.24058224]
[1610177523652,0.67256551,39529.0,39511.0,0.24058224]
[1610177524053,0.67237444,39528.0,39511.0,0.24058224]
[1610177524854,0.67229549,39526.0,39511.0,0.24058224]
[1610177525054,0.13632608,39517.0,39511.0,0.24058224]
[1610177525454,0.67233655,39523.0,39511.0,0.24058224]
[1610177525653,0.67223111,39522.0,39511.0,0.24058224]
[1610177525857,0.67223111,39522.0,39511.0,0.2405824]
[1610177526156,0.76387816,39526.0,39511.0,0.2405824]
[1610177526157,0.67217311,39526.0,39511.0,0.2405824]
[1610177526558,0.67194862,39531.0,39511.0,0.2405824]
[1610177526957,0.13632608,39529.0,39511.0,0.2405824]
[1610177527157,0.67194862,39531.0,39511.0,0.2405824]
[1610177527359,0.67197127,39528.0,39511.0,0.2405824]
[1610177527761,0.67180835,39529.0,39511.0,0.2405824]
[1610177528159,0.67180855,39528.0,39511.0,0.2405824]
[1610177528960,0.67159995,39532.0,39511.0,0.2405824]
[1610177529360,0.13632608,39539.0,39511.0,0.2405824]
[1610177529361,0.67156809,39534.0,39511.0,0.2405824]
[1610177529560,0.67156809,39534.0,39511.0,0.24991328]
[1610177529761,0.67130495,39537.0,39511.0,0.24991328]
[1610177530162,0.67124614,39538.0,39511.0,0.24991328]
[1610177530562,0.67124614,39538.0,39511.0,0.2405824]
[1610177530763,0.67098844,39537.0,39511.0,0.2405824]
[1610177530965,0.67098844,39537.0,39511.0,0.24991245]
[1610177531166,0.67096218,39542.0,39511.0,0.24991245]
[1610177531566,0.67061592,39544.0,39511.0,0.24991245]
[1610177531867,0.67061592,39544.0,39511.0,0.2405824]
[1610177532268,0.67054302,39545.0,39511.0,0.2405824]
[1610177533772,0.66999039,39544.0,39511.0,0.2405824]
[1610177534773,0.6698402,39540.0,39511.0,0.2405824]
[1610177534973,0.66978915,39542.0,39511.0,0.2405824]
[1610177535373,0.6696872,39546.0,39511.0,0.2405824]
[1610177535773,0.89731352,39550.0,39511.0,0.2405824]
[1610177535774,0.66947843,39548.0,39511.0,0.2405824]
[1610177536175,0.66946882,39547.0,39511.0,0.2405824]
[1610177536773,0.66917152,39548.0,39511.0,0.2405824]
[1610177536973,0.80551112,39550.0,39511.0,0.2405824]
[1610177538577,0.66880878,39547.0,39511.0,0.2405824]
[1610177539078,0.80512556,39550.0,39511.0,0.2405824]
[1610177539880,0.66870393,39548.0,39511.0,0.2405824]
[1610177540681,0.66854701,39552.0,39511.0,0.2405824]
[1610177541184,0.66840303,39555.0,39511.0,0.2405824]
[1610177541583,0.13632608,39559.0,39511.0,0.2405824]
[1610177542182,0.13632608,39559.0,39511.0,0.24990809]
[1610177542382,0.80457847,39559.0,39511.0,0.24990809]
[1610177542581,0.66825239,39559.0,39511.0,1.74990809]
[1610177542782,0.66804905,39561.0,39511.0,1.74990809]
[1610177542982,0.66804905,39561.0,39511.0,1.77896414]
[1610177543184,0.09678,39564.0,39511.0,1.77896414]
[1610177544389,0.09678,39564.0,39511.0,0.27896414]
[1610177544789,0.09678,39564.0,39511.0,0.24990809]
[1610177545390,0.11284,39554.0,39511.0,3.87850809]
[1610177545789,0.11284,39554.0,39511.0,5.37850809]
[1610177545990,0.11284,39554.0,39511.0,5.40756212]
[1610177546190,0.11284,39554.0,39511.0,5.37850809]
[1610177546390,0.11284,39554.0,39511.0,5.40756188]
[1610177546795,0.11284,39554.0,39511.0,3.90756188]
[1610177547994,0.09678,39564.0,39511.0,3.90756188]
[1610177548393,0.0753,39534.0,39511.0,3.90756188]
[1610177548594,0.09678,39564.0,39511.0,3.90756188]
[1610177549594,0.0763,39534.0,39511.0,3.90756188]
[1610177549795,0.09678,39564.0,39511.0,3.90756188]
[1610177550195,0.076,39515.0,39511.0,3.90756188]
[1610177550396,0.076,39515.0,39511.0,0.27896188]
[1610177550796,0.0767,39539.0,39511.0,0.27896188]
[1610177550797,0.66616914,39574.0,39511.0,0.27896188]
[1610177550997,0.68153882,39570.0,39511.0,0.24990809]
[1610177551197,0.13632608,39570.0,39511.0,0.24990809]
[1610177551599,0.68131134,39570.0,39511.0,0.24990809]
[1610177552000,0.0751,39529.0,39512.0,4.0582]
[1610177552199,0.0751,39529.0,39512.0,0.00954984]
[1610177552999,0.0751,39529.0,39528.0,0.13632608]
[1610177553199,0.4541868,39561.0,39528.0,0.25147608]
[1610177553399,0.4541868,39561.0,39528.0,0.26102671]
[1610177553601,0.45417026,39562.0,39529.0,0.00955045]
[1610177554000,0.5686,39563.0,39529.0,0.00955045]
[1610177554604,0.45423655,39561.0,39529.0,0.00955045]
[1610177555002,0.45423655,39561.0,39558.0,0.13632608]
[1610177555203,1.02278278,39563.0,39558.0,0.13632608]
[1610177555402,1.02278278,39563.0,39528.0,0.11515]
[1610177555803,0.0752,39562.0,39528.0,0.11515]
[1610177556005,0.5294267,39561.0,39529.0,0.00955056]
[1610177556404,0.45422941,39560.0,39529.0,0.00955056]
[1610177556804,0.52934523,39561.0,39529.0,0.00955056]
[1610177557004,0.4541607,39560.0,39557.0,0.13632608]
[1610177557207,0.4541607,39560.0,39529.0,0.00955056]
[1610177557605,3.6201,39553.0,39529.0,0.00955056]
[1610177557806,3.71847,39553.0,39529.0,0.00955056]
[1610177558405,0.45419578,39551.0,39512.0,0.00955285]
[1610177558607,0.45419578,39551.0,39530.0,0.00022634]
[1610177558808,0.454173,39549.0,39513.0,0.00955397]
[1610177559007,0.454173,39549.0,39535.0,0.13632608]
[1610177559407,0.454173,39549.0,39536.0,0.00022634]
[1610177560008,0.60973442,39552.0,39536.0,0.00022634]
[1610177560408,0.1556,39552.0,39536.0,0.00022634]
[1610177561209,0.13632608,39549.0,39548.0,0.13632608]
[1610177561609,3.101,39537.0,39536.0,0.00022634]
[1610177561810,3.101,39537.0,39519.0,0.11395]
[1610177562010,3.101,39537.0,39536.0,0.00022634]
[1610177562210,3.101,39537.0,39520.0,0.00955418]
[1610177562610,3.101,39537.0,39512.0,0.00955543]
[1610177562812,3.101,39537.0,39521.0,0.00022636]
[1610177563011,0.2998,39536.0,39513.0,0.00955554]
[1610177563212,0.13632608,39522.0,39519.0,0.13632608]
[1610177563613,0.13632608,39522.0,39520.0,0.00022636]
[1610177565312,0.07499,39525.0,39503.0,0.13632608]
[1610177565313,0.07499,39525.0,39511.0,3.9702]
[1610177565515,0.07499,39525.0,39521.0,0.00022639]
[1610177565716,0.45427799,39534.0,39513.0,0.10131]
[1610177565915,0.45427799,39534.0,39522.0,0.42452636]
[1610177566114,0.75702907,39543.0,39522.0,0.42452636]
[1610177566115,0.45420785,39543.0,39522.0,0.51460636]
[1610177566314,0.45420785,39543.0,39523.0,0.00022634]
[1610177566516,0.2705,39547.0,39523.0,0.00022634]
[1610177566715,0.2705,39547.0,39524.0,0.00022628]
[1610177567118,0.2705,39547.0,39546.0,0.13632608]
[1610177567518,0.2705,39547.0,39546.0,0.13655233]
[1610177572325,0.2705,39547.0,39546.0,0.14587466]
[1610177572826,0.2705,39547.0,39546.0,0.13655233]
[1610177574126,0.2705,39547.0,39546.0,0.14587485]
[1610177576531,0.2705,39547.0,39546.0,0.00022625]
[1610177577130,0.2705,39547.0,39522.0,0.09008]
[1610177577131,1.78269015,39547.0,39541.0,0.13632608]
[1610177577332,1.78269015,39547.0,39546.0,0.00022628]
[1610177577531,0.40682608,39547.0,39542.0,0.0002263]
[1610177577934,2.45395045,39547.0,39523.0,0.00955268]
[1610177578132,1.00601564,39543.0,39523.0,0.00932638]
[1610177578331,1.08699564,39543.0,39524.0,0.00022632]
[1610177578532,0.4575609,39537.0,39524.0,0.00022632]
[1610177578732,0.4575609,39537.0,39518.0,0.03860786]
[1610177578941,0.4575609,39537.0,39525.0,0.00022632]
[1610177579133,0.4575609,39537.0,39536.0,0.13632608]
[1610177579435,0.45795253,39539.0,39536.0,0.13632608]
[1610177579636,0.45795253,39539.0,39536.0,0.13655238]
[1610177579834,0.37050424,39542.0,39536.0,0.13655238]
[1610177579835,0.45798354,39540.0,39536.0,0.1458783]
[1610177580034,0.45798354,39540.0,39537.0,0.00955216]
[1610177580438,0.45797126,39541.0,39537.0,0.00955216]
[1610177581037,0.45797535,39542.0,39537.0,0.00955216]
[1610177581237,0.45797535,39542.0,39541.0,0.13632608]
[1610177581439,0.37049306,39542.0,39541.0,0.13632608]
[1610177581637,0.37049306,39542.0,39541.0,0.13655238]
[1610177581838,2.053599,39542.0,39541.0,0.14587826]
[1610177582037,2.053599,39542.0,39541.0,0.13655238]
[1610177582238,2.053599,39542.0,39541.0,0.0002263]
[1610177582438,0.67321178,39542.0,39541.0,0.0002263]
[1610177582638,0.67321178,39542.0,39523.0,0.00955228]
[1610177582839,2.05408988,39542.0,39541.0,0.0002263]
[1610177583238,0.45927821,39535.0,39524.0,0.0002263]
[1610177583439,0.45931138,39536.0,39523.0,0.00932598]
[1610177583638,0.45931138,39536.0,39525.0,0.00022647]
[1610177583841,0.45933323,39538.0,39525.0,0.00022647]
[1610177584041,0.45933323,39538.0,39523.0,0.00955245]
[1610177584239,0.45934499,39537.0,39526.0,0.00022647]
[1610177584439,0.45934499,39537.0,39524.0,0.00022647]
[1610177584840,0.45934499,39537.0,39527.0,0.00022647]
[1610177585043,0.45934499,39537.0,39525.0,0.00022647]
[1610177585240,0.45934499,39537.0,39536.0,0.13632608]
[1610177585441,0.45946307,39540.0,39536.0,0.13632608]
[1610177585841,0.45960421,39542.0,39537.0,0.00957881]
[1610177586341,0.45957042,39544.0,39537.0,0.00957881]
[1610177586540,0.37041677,39546.0,39537.0,0.00957881]
[1610177586940,0.3002,39558.0,39537.0,0.00957881]
[1610177587140,0.13632608,39548.0,39547.0,0.13632608]
[1610177587741,0.13632608,39548.0,39547.0,0.14608622]
[1610177588042,2.19266113,39548.0,39547.0,0.14608622]
[1610177588843,2.95926652,39548.0,39547.0,0.14608622]
[1610177589042,2.95926652,39548.0,39547.0,0.13655293]
[1610177589444,3.51494584,39548.0,39547.0,0.13655293]
[1610177590044,3.51494584,39548.0,39547.0,0.00022685]
[1610177590646,3.51494584,39548.0,39523.0,0.00976107]
[1610177590851,3.51494584,39548.0,39547.0,0.00022687]
[1610177591045,0.76682071,39546.0,39530.0,0.09334]
[1610177591248,0.46015376,39537.0,39530.0,0.09334]
[1610177591745,0.46015376,39537.0,39531.0,0.00976085]
[1610177592347,0.37046156,39543.0,39531.0,0.00976085]
[1610177592749,0.46020425,39536.0,39531.0,0.00976085]
[1610177592949,0.46021514,39535.0,39531.0,0.00976085]
[1610177593148,0.46021514,39535.0,39534.0,0.13632608]
[1610177593650,0.46021514,39535.0,39534.0,0.14608714]
[1610177593851,0.46024495,39536.0,39534.0,0.14608714]
[1610177594350,0.55227538,39537.0,39535.0,0.00976147]
[1610177594551,1.0126297,39536.0,39535.0,0.00976147]
[1610177595051,0.46030017,39536.0,39535.0,0.00976147]
[1610177595450,1.0126568,39536.0,39535.0,0.00976147]
[1610177595855,0.46030017,39536.0,39535.0,0.00976147]
[1610177596454,0.46030017,39536.0,39535.0,0.00953459]
[1610177596652,0.46030017,39536.0,39535.0,0.00976146]
[1610177597655,0.46034005,39537.0,39535.0,0.00976146]
[1610177598460,0.46037689,39536.0,39535.0,0.00976146]
[1610177599260,0.46037112,39537.0,39535.0,0.00976146]
[1610177599661,0.4603915,39536.0,39535.0,0.00976146]
[1610177600161,1.01284987,39536.0,39535.0,0.00976146]
[1610177601366,1.38333931,39536.0,39535.0,0.00976146]
[1610177603267,2.05854054,39536.0,39535.0,0.00976146]
[1610177603669,1.38333931,39536.0,39535.0,0.00976146]
[1610177604070,2.61440275,39536.0,39535.0,0.00976146]
[1610177604268,5.60730275,39536.0,39523.0,0.00976365]
[1610177604470,6.37463446,39536.0,39523.0,0.00976365]
[1610177604669,6.37463446,39536.0,39535.0,0.00976371]
[1610177604670,3.38173446,39536.0,39535.0,0.00976371]
[1610177604870,0.37053893,39535.0,39534.0,4.0362]
[1610177605271,1.01290471,39535.0,39534.0,4.18206053]
[1610177605471,1.01290471,39535.0,39534.0,4.21164273]
[1610177605673,0.4603576,39537.0,39534.0,4.21164273]
[1610177605872,0.4603576,39537.0,39534.0,4.29927273]
[1610177606075,0.46033057,39542.0,39534.0,4.29927273]
[1610177606274,0.46033057,39542.0,39535.0,0.03910872]
[1610177606473,0.76711536,39552.0,39535.0,0.03910872]
[1610177606474,0.46037103,39541.0,39535.0,0.03910872]
[1610177607275,0.67514632,39547.0,39535.0,0.03910872]
[1610177607276,0.46037793,39540.0,39535.0,0.03910872]
[1610177607573,0.4604081,39541.0,39535.0,0.03910872]
[1610177607975,0.46040707,39542.0,39535.0,0.03910872]
[1610177609277,0.46040707,39542.0,39541.0,0.13632608]
[1610177609476,0.55251851,39543.0,39541.0,0.13632608]
[1610177609676,0.55251851,39543.0,39541.0,0.14608508]
[1610177609878,0.76732715,39550.0,39542.0,0.0097589]
[1610177610076,0.76732715,39550.0,39542.0,0.00975908]
[1610177610277,0.6753802,39546.0,39542.0,0.00975908]
[1610177610678,1.01327943,39543.0,39542.0,0.00975908]
[1610177611879,0.46059551,39543.0,39542.0,0.00975908]
[1610177612680,1.01347245,39543.0,39542.0,0.00975908]
[1610177613081,0.46059551,39543.0,39542.0,3.30975908]
[1610177613480,0.46066262,39546.0,39542.0,3.30975908]
[1610177613682,0.46066262,39546.0,39542.0,3.44961268]
[1610177613882,0.46064855,39548.0,39543.0,0.03909923]
[1610177614382,0.55274756,39550.0,39543.0,0.03909923]
[1610177614582,0.46059402,39549.0,39543.0,0.03909923]
[1610177614983,0.46059994,39547.0,39546.0,3.3278]
[1610177615384,0.46057001,39548.0,39546.0,3.50322633]
[1610177615984,0.46057001,39548.0,39547.0,0.03909822]